[Event "VIII Open Semana Santa 2024"]
[Site "San Vicente del Raspeig"]
[Date "2024.03.31"]
[Round "7.9"]
[White "Lazaro Pujol, Abel"]
[Black "Alexakis, Dimitris"]
[Result "1/2-1/2"]
[ECO "B83"]
[WhiteElo "2309"]
[BlackElo "2448"]
[Annotator "TA"]
[PlyCount "40"]
[EventDate "2024.03.27"]
[EventType "swiss"]
[EventCountry "ESP"]
[SourceTitle "playchess.com"]
[Source "ChessBase"]
[SourceQuality "1"]
[TimeControl "5400+30"]

{[%evp 25,40,0,0,0,0,0,0,0,0,0,0,0,0,0,0,0,0]} 1. e4 {[%emt 0:00:03]} c5 {[%emt 0:07:03]} 2. Nf3 {[%emt 0:00:20]} e6 {[%emt 0:00:06]} 3. d4 {[%emt 0:00:15]} cxd4 {[%emt 0:00:06]} 4. Nxd4 {[%emt 0:00:06]} Nc6 {[%emt 0:00:03]} 5. Nc3 {[%emt 0:00:32]} Qc7 {[%emt 0:00:10]} 6. Be2 {[%emt 0:00:59]} Nf6 {[%emt 0:00:16]} 7. O-O {[%emt 0:00:35]} Be7 {[%emt 0:00:22]} 8. Be3 {[%emt 0:00:38]} O-O {[%emt 0:00:12]} 9. f4 {[%emt 0:00:51]} d6 {[%emt 0:00:17]} 10. Qe1 {[%emt 0:00:41]} Nxd4 {[%emt 0:00:19]} 11. Bxd4 {[%emt 0:00:05]} e5 {[%emt 0:00:12]} 12. fxe5 {[%emt 0:03:43]} dxe5 {[%emt 0:00:07]} 13. Qg3 {[%emt 0:00:06]} Bc5 {[%emt 0:00:10] The position is equal.} 14. Bxc5 {[%emt 0:00:17]} Qxc5+ {[%emt 0:00:06]} 15. Kh1 {[%emt 0:00:23]} Kh8 {[%emt 0:02:03]} 16. Rxf6 {[%emt 0:15:42]} gxf6 {[%emt 0:00:07]} 17. Qh4 {[%emt 0:00:03]} Rg8 $1 {[%emt 0:00:29] Threatens to win with ...Rg6.} 18. Qxf6+ {[%emt 0:00:07]} Rg7 {[%emt 0:00:04]} 19. Qd8+ {[%emt 0:01:17]} (19. Rd1 $5 Be6 $8 20. Rd8+ Rxd8 21. Qxd8+ Rg8 22. Qf6+ Rg7 23. Qd8+ Rg8 24. Qf6+ Rg7 25. Qd8+ $11) 19... Rg8 {[%emt 0:00:08]} 20. Qf6+ {[%emt 0:00:08]} Rg7 {[%emt 0:00:05] An uneventful encounter.   Weighted Error Value: White=0.00 (flawless) /Black=0.00 (flawless) .  OK:         	White=4     	Black=1      Best:        	---       	Black=1      Strong:       	---       	Black=1} 1/2-1/2

[Event "VIII Open Semana Santa 2024"]
[Site "San Vicente del Raspeig"]
[Date "2024.03.31"]
[Round "7.10"]
[White "Adhiban, B.."]
[Black "Mamedov, Edgar"]
[Result "1/2-1/2"]
[ECO "B30"]
[WhiteElo "2541"]
[BlackElo "2317"]
[Annotator "TA"]
[PlyCount "65"]
[EventDate "2024.03.27"]
[EventType "swiss"]
[EventCountry "ESP"]
[SourceTitle "playchess.com"]
[Source "ChessBase"]
[SourceQuality "1"]
[TimeControl "5400+30"]

{[%evp 9,65,10,16,1,6,0,25,28,24,24,33,16,12,22,19,20,23,-40,52,50,51,60,35,50,60,27,35,37,38,44,42,45,31,42,38,39,35,34,54,16,14,12,8,12,23,32,52,51,69,31,31,23,24,0,59,15,14,18]} 1. e4 {[%emt 0:00:05]} c5 {[%emt 0:00:18]} 2. Nf3 {[%emt 0:00:05]} Nc6 {[%emt 0:00:06]} 3. Bb5 {[%emt 0:00:04]} e6 {[%emt 0:00:23]} 4. Bxc6 {[%emt 0:00:06]} bxc6 {[%emt 0:00:18]} 5. b3 {[%emt 0:00:05]} Ne7 {[%emt 0:01:17][%cal Bg8e7,Be7f5,Bf5d4][%mdl 32]} 6. Bb2 {[%emt 0:00:30]} d6 {[%emt 0:01:08]} 7. e5 {[%emt 0:00:41]} Nf5 {[%emt 0:00:34]} 8. exd6 {[%emt 0:05:26] White has an edge.} Bxd6 {[%emt 0:02:56]} 9. d3 {[%emt 0:06:02]} O-O {[%emt 0:01:56][%cal Oe6e5]} 10. Nbd2 {[%emt 0:00:04]} e5 {[%emt 0:05:44]} 11. Nc4 {[%emt 0:01:30][%cal Oc4d6]} Nd4 {[%emt 0:02:43]} 12. h3 {[%emt 0:21:05] Dodges Bg4} (12. Nfxe5 $2 {loses.} Bxe5 13. c3 (13. Nxe5 $2 {too greedy.} Re8 $19) 13... Nf5 14. Nxe5 Re8 $19) 12... Bc7 {[%emt 0:03:01]} 13. Qd2 {[%emt 0:02:06]} ({Better is} 13. O-O $11) 13... Qf6 {[%emt 0:10:14]} (13... Re8 $15 14. O-O-O a5) 14. O-O-O $14 {[%emt 0:00:49]} Be6 {[%emt 0:00:50] [#] aiming for ...Bxc4.} 15. Qg5 {[%emt 0:02:43]} Qxg5+ {[%emt 0:06:03]} 16. Nxg5 {[%emt 0:00:05] A dynamic duo of knights.} Bd5 {[%emt 0:04:30]} 17. Ne3 {[%emt 0:05:26]} f5 {[%emt 0:11:23]} 18. Rhe1 {[%emt 0:14:55]} Rae8 {[%emt 0:14:05]} 19. c3 {[%emt 0:01:02]} Ne6 {[%emt 0:00:34]} 20. Nxe6 {[%emt 0:00:25]} Bxe6 {[%emt 0:00:15]} 21. Ba3 {[%emt 0:06:46]} Bd6 {[%emt 0:05:05]} 22. f3 {[%emt 0:03:05]} Rf6 {[%emt 0:06:23]} 23. Kc2 {[%emt 0:02:07]} Bd5 {[%emt 0:01:19]} 24. c4 {[%emt 0:02:34]} Bf7 {[%emt 0:00:49][%cal Bd5f7,Bf7g6,Bg6h7][%mdl 32]} 25. Bb2 {[%emt 0:01:16]} Bg6 {[%emt 0:00:56]} 26. Nf1 {[%emt 0:04:16]} Rfe6 {[%emt 0:01:46] [#] Strongly threatening ...e4.} 27. Nd2 {[%emt 0:00:12]} h6 {[%emt 0:03:43]} 28. Re2 {[%emt 0:00:25]} Bh7 {[%emt 0:00:34]} 29. h4 {[%emt 0:02:50]} h5 {[%emt 0:03:39]} 30. Ba3 {[%emt 0:07:50]} Be7 {[%emt 0:01:20]} 31. Rh1 {[%emt 0:00:37]} Rd8 {[%emt 0:03:13]} (31... Kf7 $11) 32. Bb2 {[%emt 0:04:18]} Bf6 {[%emt 0:00:55]} 33. Rhe1 {[%emt 0:02:17] Weighted Error Value: White=0.12 (very precise) /Black=0.12 (very precise) .  Mistake:       	White=1     	Black=2      Inaccurate:     	White=4     	---        OK:         	White=11    	Black=13     Best:        	White=2     	---} 1/2-1/2

[Event "VIII Open Semana Santa 2024"]
[Site "San Vicente del Raspeig"]
[Date "2024.03.31"]
[Round "7.11"]
[White "Makhnev, Denis"]
[Black "Merario Alarcon, Andres"]
[Result "0-1"]
[ECO "B13"]
[WhiteElo "2516"]
[BlackElo "2401"]
[Annotator "TA"]
[PlyCount "58"]
[EventDate "2024.03.27"]
[EventType "swiss"]
[EventCountry "ESP"]
[SourceTitle "playchess.com"]
[Source "ChessBase"]
[SourceQuality "1"]
[TimeControl "5400+30"]

{[%evp 9,58,0,11,-23,-15,-14,-15,-87,-88,-118,-69,-77,-85,-85,-32,-96,-102,-99,-118,-114,-109,-139,-134,-181,-139,-124,-106,-193,-190,-175,-159,-279,-256,-583,-590,-599,-608,-599,-593,-591,-589,-670,-693,-984,-981,-1763,-1794,-1971,-1909,-2040,-1962]} 1. d4 {[%emt 0:00:04]} d5 {[%emt 0:00:56]} 2. Bf4 {[%emt 0:00:07]} c5 {[%emt 0:03:29]} 3. e3 {[%emt 0:00:10]} cxd4 {[%emt 0:01:24]} 4. exd4 {[%emt 0:00:11]} Nc6 {[%emt 0:00:05]} 5. c3 {[%emt 0:00:24]} f6 {[%emt 0:01:23]} 6. Bd3 {[%emt 0:12:20]} e5 $1 {[%emt 0:00:20]} 7. Qh5+ {[%emt 0:18:29]} g6 {[%emt 0:00:10]} 8. Qe2 {[%emt 0:00:05]} (8. Bxg6+ $11 {remains equal.} hxg6 9. Qxh8 exf4 10. Qxg8) 8... Bg7 $17 {[%emt 0:11:56]} 9. Bb5 {[%emt 0:04:58]} Qe7 {[%emt 0:02:28]} (9... Nge7 $17 10. dxe5 fxe5 11. Bxe5 Bxe5 12. Qxe5 O-O) 10. Be3 $15 {[%emt 0:00:10]} a6 $36 {[%emt 0:03:46][%mdl 2048] White is under strong pressure.} 11. Ba4 {[%emt 0:00:07]} Nh6 {[%emt 0:00:28]} (11... Qc7 $17) 12. Nf3 {[%emt 0:10:58] [#]} ({White should play} 12. dxe5 $1 $15 fxe5 13. Qd2) 12... e4 $1 $17 {[%emt 0:08:11]} 13. Nfd2 {[%emt 0:00:19]} f5 {[%emt 0:10:08]} 14. Bb3 {[%emt 0:17:41]} Be6 {[%emt 0:00:54]} 15. f3 {[%emt 0:00:22]} O-O {[%emt 0:06:08] Threatens to win with ...f4.} 16. Bf2 {[%emt 0:00:29]} (16. g3 $17) 16... Rae8 {[%emt 0:05:24]} 17. O-O {[%emt 0:00:55]} Bf7 {[%emt 0:00:30] ...e3 is the strong threat. Black is more active.} 18. Re1 {[%emt 0:00:29] [#]} (18. fxe4 $17 dxe4 (18... fxe4 19. Be3 $17) 19. Be3) 18... Qg5 $1 $19 {[%emt 0:07:14][%cal Oe4e3] Hoping for ...e3!} 19. h4 {[%emt 0:02:57]} Qd8 {[%emt 0:05:42][%cal Oe4e3]} 20. Qe3 {[%emt 0:00:08]} (20. Qf1 $17) 20... exf3 {[%emt 0:05:02]} 21. Qxf3 {[%emt 0:00:07] [#]} (21. Qg5 {is more resistant.} Rxe1+ 22. Bxe1 fxg2 23. Qxd8 Rxd8 24. Nf3) 21... Nxd4 $1 {[%emt 0:00:34][%mdl 512] Black is clearly winning.} 22. cxd4 {[%emt 0:00:05] And now Nc3 would win.} (22. Qd3 Rxe1+) 22... Rxe1+ {[%emt 0:00:04]} 23. Bxe1 {[%emt 0:00:05] Qd3 would now be deadly.} Bxd4+ {[%emt 0:00:11]} 24. Bf2 {[%emt 0:00:05]} Bxb2 {[%emt 0:02:27]} ({And not} 24... Qxh4 25. Nf1 $14 (25. Bxd5 $2 Bxf2+ 26. Qxf2 Qxf2+ 27. Kxf2 Bxd5 $19) (25. Nc3 Ng4 $14)) 25. Qf4 {[%emt 0:00:05]} Ng4 {[%emt 0:00:30][%cal Ob2e5]} (25... Bxa1 $2 26. Qxh6 Bg7 27. Qe3 $19) 26. Bd4 {[%emt 0:00:20]} Qb8 {[%emt 0:00:49]} ({Less strong is} 26... Bxa1 27. Bxa1 Qxh4 28. Nf1 $17) 27. Qxg4 {[%emt 0:00:46]} fxg4 {[%emt 0:03:18]} 28. Bxb2 {[%emt 0:00:06]} Qa7+ {[%emt 0:00:31]} 29. Kh1 {[%emt 0:02:20]} Qf2 {[%emt 0:00:24] Weighted Error Value: White=0.91/Black=0.08 (flawless) .  Mistake:       	White=6     	Black=2      Inaccurate:     	White=2     	---        OK:         	White=3     	Black=10     Best:        	White=2     	Black=3      Strong:       	---       	Black=2} 0-1

[Event "VIII Open Semana Santa 2024"]
[Site "San Vicente del Raspeig"]
[Date "2024.03.31"]
[Round "7.12"]
[White "Xiao, Tong(Qd)"]
[Black "Zylka, Stanislaw"]
[Result "1/2-1/2"]
[ECO "C70"]
[WhiteElo "2484"]
[BlackElo "2401"]
[Annotator "RC"]
[PlyCount "50"]
[EventDate "2024.03.27"]
[EventType "swiss"]
[EventCountry "ESP"]
[SourceTitle "playchess.com"]
[Source "ChessBase"]
[SourceQuality "1"]
[TimeControl "5400+30"]

1. e4 {[%emt 0:00:01]} e5 {[%emt 0:03:06]} 2. Nf3 {[%emt 0:00:05]} Nc6 {[%emt 0:00:12]} 3. Bb5 {[%emt 0:00:10]} a6 {[%emt 0:00:04]} 4. Ba4 {[%emt 0:00:05]} b5 {[%emt 0:00:06]} 5. Bb3 {[%emt 0:00:04]} Na5 {[%emt 0:00:08]} 6. O-O {[%emt 0:01:03]} d6 {[%emt 0:00:09]} 7. d4 {[%emt 0:00:31]} exd4 {[%emt 0:00:07]} 8. Nxd4 {[%emt 0:00:30]} Bb7 {[%emt 0:00:46]} 9. a4 {[%emt 0:06:57]} c5 {[%emt 0:08:26]} 10. Nf5 {[%emt 0:00:18]} Nxb3 {[%emt 0:01:08]} 11. cxb3 {[%emt 0:00:05]} g6 {[%emt 0:00:19]} 12. Ne3 {[%emt 0:06:24]} Nf6 {[%emt 0:12:48]} 13. Nc3 {[%emt 0:10:35]} Bg7 {[%emt 0:06:52]} 14. axb5 {[%emt 0:10:59]} axb5 {[%emt 0:01:34]} 15. Rxa8 {[%emt 0:00:09]} Bxa8 {[%emt 0:00:06]} 16. Ned5 {[%emt 0:09:54]} b4 {[%emt 0:07:37]} 17. Nxf6+ {[%emt 0:03:42]} Qxf6 {[%emt 0:00:19]} 18. Nd5 {[%emt 0:00:09]} Qd8 {[%emt 0:02:55]} 19. h4 {[%emt 0:03:35]} Qxh4 {[%emt 0:22:31]} 20. Nc7+ {[%emt 0:00:09]} Kd7 {[%emt 0:00:07]} 21. Nxa8 {[%emt 0:01:41]} Rxa8 {[%emt 0:03:56]} 22. Qd5 {[%emt 0:00:23]} Be5 {[%emt 0:00:42]} 23. g3 {[%emt 0:01:46]} Bxg3 {[%emt 0:01:18]} 24. fxg3 {[%emt 0:04:24]} Qxg3+ {[%emt 0:00:09]} 25. Kh1 {[%emt 0:00:04]} Qh3+ {[%emt 0:00:11]} 1/2-1/2

[Event "VIII Open Semana Santa 2024"]
[Site "San Vicente del Raspeig"]
[Date "2024.03.31"]
[Round "7.13"]
[White "Habans Aguerrea, Javier"]
[Black "Urazayev, Arystanbek"]
[Result "1/2-1/2"]
[ECO "A50"]
[WhiteElo "2399"]
[BlackElo "2476"]
[Annotator "TA"]
[PlyCount "184"]
[EventDate "2024.03.27"]
[EventType "swiss"]
[EventCountry "ESP"]
[SourceTitle "playchess.com"]
[Source "ChessBase"]
[SourceQuality "1"]
[TimeControl "5400+30"]

{[%evp 12,184,28,16,39,35,41,37,33,24,20,14,6,13,18,21,17,0,7,-17,56,0,0,8,19,18,16,-22,-20,-14,0,0,0,-14,36,31,43,33,114,114,125,115,111,74,89,80,76,22,37,36,29,38,107,103,94,48,50,49,44,54,49,47,66,66,56,54,67,54,60,85,62,94,121,107,270,270,270,270,612,612,612,612,612,612,612,612,612,612,612,543,543,543,543,543,543,543,543,543,543,543,543,543,543,543,543,543,543,543,543,543,543,543,543,543,543,543,543,543,543,543,543,543,543,543,543,543,543,543,543,543,543,543,543,0,543,0,543,543,543,543,543,543,543,543,543,543,543,543,543,543,543,543,543,543,543,543,543,0,543,543,543,8,8,0,0,0,0,0,0,0,0,0,0,0,0]} 1. c4 {[%emt 0:00:04]} b6 {[%emt 0:03:28]} 2. Nf3 {[%emt 0:02:47]} Bb7 {[%emt 0:00:07]} 3. g3 {[%emt 0:00:13]} g6 {[%emt 0:02:16]} 4. Bg2 {[%emt 0:01:10]} Bg7 {[%emt 0:00:06]} 5. O-O {[%emt 0:04:58]} Nf6 {[%emt 0:02:02]} 6. d4 {[%emt 0:02:28]} O-O {[%emt 0:00:16]} 7. d5 {[%emt 0:02:33]} Na6 {[%emt 0:00:33]} 8. Nc3 {[%emt 0:00:24]} Nc5 {[%emt 0:00:07]} 9. Nd4 {[%emt 0:01:54]} e5 {[%emt 0:00:06] White is slightly better.} 10. Nc2 {[%emt 0:07:15]} a5 {[%emt 0:00:08]} 11. b3 {[%emt 0:03:36]} Ne8 {[%emt 0:04:13]} 12. e4 {[%emt 0:07:51]} f5 {[%emt 0:03:40]} 13. exf5 {[%emt 0:04:44]} gxf5 {[%emt 0:00:54]} 14. Be3 {[%emt 0:00:53]} d6 {[%emt 0:06:37]} 15. Qd2 {[%emt 0:10:49]} Nf6 {[%emt 0:04:00]} (15... f4 $1 $11 16. Bxc5 bxc5) 16. Bh6 {[%emt 0:03:27]} (16. f4 $14 {might be stronger.}) 16... Bxh6 $11 {[%emt 0:05:29]} 17. Qxh6 {[%emt 0:00:03]} Ng4 {[%emt 0:00:14]} 18. Qd2 {[%emt 0:02:47]} f4 {[%emt 0:01:11]} 19. h3 {[%emt 0:04:51]} Nh6 {[%emt 0:03:32]} 20. gxf4 {[%emt 0:01:03]} exf4 {[%emt 0:04:29]} 21. Nd4 {[%emt 0:01:17]} Qf6 {[%emt 0:01:16]} 22. Nf3 {[%emt 0:04:07]} Nf5 {[%emt 0:07:04]} (22... Nf7 $11) 23. Rae1 $14 {[%emt 0:02:27][%cal Og1h2]} Nh4 {[%emt 0:02:34]} 24. Kh2 {[%emt 0:07:28]} Nxg2 {[%emt 0:17:41]} (24... Ng6 $14) 25. Rg1 $16 {[%emt 0:00:29]} Kh8 {[%emt 0:00:55]} 26. Rxg2 {[%emt 0:00:06]} Rg8 {[%emt 0:01:13]} 27. Reg1 {[%emt 0:06:25]} Rxg2+ {[%emt 0:00:27]} 28. Rxg2 {[%emt 0:00:02]} Rf8 {[%emt 0:03:59] [#]} 29. Qd4 {[%emt 0:07:57]} ({White should play} 29. Nb5 $1 $16) 29... Qxd4 {[%emt 0:01:06]} 30. Nxd4 {[%emt 0:00:14]} Bc8 {[%emt 0:00:17]} 31. Ncb5 {[%emt 0:01:56]} Rf6 {[%emt 0:04:18]} (31... Rf7 $14) 32. Nxc7 {[%emt 0:01:14]} Rh6 {[%emt 0:02:30]} 33. f3 {[%emt 0:01:20]} (33. h4 $16) 33... Bxh3 $14 {[%emt 0:01:02]} 34. Rg5 {[%emt 0:00:34]} Bf5+ {[%emt 0:04:36]} 35. Kg2 {[%emt 0:02:51]} Bb1 {[%emt 0:00:04]} 36. a3 {[%emt 0:04:54][%cal Ba2a3,Ba3b4][%mdl 32]} Ba2 $1 {[%emt 0:00:41]} 37. b4 {[%emt 0:00:06]} axb4 {[%emt 0:00:11]} 38. axb4 {[%emt 0:00:01]} Nd3 {[%emt 0:00:41]} 39. Nf5 {[%emt 0:00:14]} Rg6 {[%emt 0:04:45]} 40. Rxg6 {[%emt 0:00:01]} hxg6 {[%emt 0:00:02]} 41. Nxd6 {[%emt 0:00:02][%cal Oc4c5] [#] Black must now prevent c5!} Nxb4 {[%emt 0:00:05]} 42. Na8 {[%emt 0:03:01] White is more active.} Nxd5 $2 {[%emt 0:04:52]} 43. cxd5 $18 {[%emt 0:00:02]} Bxd5 {[%emt 0:00:02]} 44. Nxb6 {[%emt 0:00:01]} Bxf3+ {[%emt 0:00:27]} (44... Be6 45. Ne4 Kg7) 45. Kxf3 {[%emt 0:00:02][%mdl 4096] Endgame.} Kg7 {[%emt 0:00:07]} 46. Kxf4 {[%emt 0:01:30] Threatening mate with Kg5.} g5+ {[%emt 0:04:21]} 47. Kg4 {[%emt 0:00:01]} (47. Kxg5 Kh8 $11) 47... Kf6 {[%emt 0:00:07]} 48. Ne4+ {[%emt 0:00:34]} Ke5 {[%emt 0:00:06]} 49. Ng3 {[%emt 0:00:03]} (49. Nxg5 Kf6 $11) 49... Kd4 {[%emt 0:00:20]} 50. Kf3 {[%emt 0:00:15]} (50. Kxg5 Ke5 $11) 50... g4+ {[%emt 0:00:24]} 51. Kf4 {[%emt 0:00:05]} (51. Kxg4 Ke5 $11) 51... Kc5 {[%emt 0:00:04]} 52. Nd7+ {[%emt 0:00:03]} Kd4 {[%emt 0:00:04]} 53. Ne5 {[%emt 0:00:07]} ({Not} 53. Kxg4 Ke3 $11) 53... Kd5 {[%emt 0:00:08]} 54. Ng6 {[%emt 0:00:19]} (54. Nxg4 Ke6 $11) 54... Kd4 {[%emt 0:01:58]} 55. Ne7 {[%emt 0:00:07]} ({Inferior is} 55. Kxg4 Ke3 $11) 55... Kc5 {[%emt 0:00:41]} 56. Ke5 {[%emt 0:00:17]} ({Worse is} 56. Kxg4 Kd6 $11) 56... Kc4 {[%emt 0:00:04]} 57. Kd6 {[%emt 0:02:08]} Kd4 {[%emt 0:01:07]} 58. Nef5+ {[%emt 0:00:02]} Kc4 {[%emt 0:00:23]} 59. Kc6 {[%emt 0:00:02]} Kb4 {[%emt 0:01:17]} 60. Kd5 {[%emt 0:00:13]} Kb5 {[%emt 0:00:46]} 61. Nd6+ {[%emt 0:00:29]} Kb6 {[%emt 0:00:56]} 62. Nde4 {[%emt 0:00:25]} Kb5 {[%emt 0:02:33]} 63. Nc3+ {[%emt 0:00:01]} Kb6 {[%emt 0:00:12]} 64. Kd6 {[%emt 0:00:02]} Kb7 {[%emt 0:01:28]} 65. Nd5 {[%emt 0:00:12]} Ka6 {[%emt 0:00:52]} 66. Kc5 {[%emt 0:00:36]} Kb7 {[%emt 0:00:31]} 67. Kb5 {[%emt 0:00:14]} Ka7 {[%emt 0:00:12]} 68. Nc7 {[%emt 0:01:14]} Kb7 {[%emt 0:00:10]} 69. Ne6 {[%emt 0:00:01]} Ka7 {[%emt 0:00:32]} 70. Nd8 {[%emt 0:01:36]} Kb8 {[%emt 0:00:17]} 71. Kc6 {[%emt 0:00:21]} Ka7 {[%emt 0:00:58]} 72. Kb5 {[%emt 0:03:55]} Kb8 $1 {[%emt 0:00:04]} 73. Ne6 $2 {[%emt 0:00:08]} ({Better is} 73. Kb6 $18) 73... Kb7 $2 {[%emt 0:00:06][%mdl 8192]} (73... Ka7 $1 $11 {and Black has nothing to worry.} 74. Nc5 Kb8) 74. Kc5 {[%emt 0:00:44]} Ka6 {[%emt 0:00:13]} 75. Nd8 {[%emt 0:00:13]} Ka7 {[%emt 0:00:08]} 76. Kc6 {[%emt 0:00:22]} Kb8 {[%emt 0:00:04]} 77. Ne6 {[%emt 0:00:45]} Ka7 {[%emt 0:00:25]} 78. Nc5 {[%emt 0:00:18]} Kb8 {[%emt 0:00:05]} 79. Kd7 {[%emt 0:00:02]} Ka7 {[%emt 0:00:43]} 80. Kc7 {[%emt 0:00:12]} Ka8 {[%emt 0:00:01]} 81. Na6 {[%emt 0:01:26]} Ka7 {[%emt 0:00:01]} 82. Nb8 {[%emt 0:00:09]} Ka8 {[%emt 0:00:03]} 83. Nd7 {[%emt 0:01:35]} Ka7 {[%emt 0:00:04]} 84. Nc5 {[%emt 0:00:08]} Ka8 {[%emt 0:00:04]} 85. Kb6 {[%emt 0:00:45]} Kb8 {[%emt 0:00:06]} 86. Nf5 $2 {[%emt 0:00:38]} (86. Nce4 $18 Ka8 87. Kc7) 86... g3 $1 $11 {[%emt 0:00:49] ...g2 is the strong threat. The position is equal.} 87. Nd6 {[%emt 0:00:29] Na6+ would kill now.} (87. Nd7+ $5 Ka8 88. Nh4 $11) 87... g2 {[%emt 0:00:36]} 88. Na6+ {[%emt 0:00:18]} Ka8 {[%emt 0:00:01]} 89. Nc7+ {[%emt 0:00:28]} Kb8 {[%emt 0:00:02]} 90. Na6+ {[%emt 0:00:01]} Ka8 {[%emt 0:00:07]} 91. Nc7+ {[%emt 0:01:01]} Kb8 {[%emt 0:00:05]} 92. Na6+ {[%emt 0:00:07]} Ka8 {[%emt 0:00:02] Black defended with fortune.   Weighted Error Value: White=0.13 (very precise) /Black=0.19 (very precise) .  Loses game:     	---       	Black=3      Missed win:     	White=2     	---        Mistake:       	White=3     	Black=5      Inaccurate:     	White=2     	---        OK:         	White=23    	Black=25     Best:        	White=7     	Black=3      Strong:       	---       	Black=3} 1/2-1/2

[Event "VIII Open Semana Santa 2024"]
[Site "San Vicente del Raspeig"]
[Date "2024.03.31"]
[Round "7.14"]
[White "Diaz Perez, Michel Alejandro"]
[Black "Colbow, Collin"]
[Result "0-1"]
[ECO "D37"]
[WhiteElo "2464"]
[BlackElo "2373"]
[Annotator "TA"]
[PlyCount "78"]
[EventDate "2024.03.27"]
[EventType "swiss"]
[EventCountry "ESP"]
[SourceTitle "playchess.com"]
[Source "ChessBase"]
[SourceQuality "1"]
[TimeControl "5400+30"]

{[%evp 22,78,0,-8,85,79,87,0,0,0,0,0,0,0,0,0,0,0,8,12,42,54,28,31,143,22,93,0,0,-199,-192,-199,-194,-1500,-2295,-2198,-2262,-2317,-1274,-2182,-1776,-3256,-2045,-29989,-29990,-29990,-29991,-29991,-29991,-29993,-29992,-29992,-29993,-29993,-29994,-29994,-29993,-29993,-29994]} 1. d4 {[%emt 0:00:12]} Nf6 {[%emt 0:05:45]} 2. c4 {[%emt 0:00:03]} e6 {[%emt 0:00:11]} 3. Nf3 {[%emt 0:00:04]} d5 {[%emt 0:00:22]} 4. Nc3 {[%emt 0:00:03]} Be7 {[%emt 0:00:44]} 5. Bf4 {[%emt 0:00:17]} O-O {[%emt 0:00:37]} 6. e3 {[%emt 0:00:03]} c5 {[%emt 0:00:16]} 7. dxc5 {[%emt 0:00:24]} Bxc5 {[%emt 0:00:09]} 8. cxd5 {[%emt 0:07:26]} Nxd5 {[%emt 0:00:43]} 9. Nxd5 {[%emt 0:00:25]} exd5 {[%emt 0:00:01]} 10. Bd3 {[%emt 0:01:28]} Bb4+ {[%emt 0:01:11]} 11. Ke2 {[%emt 0:03:15]} Nc6 {[%emt 0:06:11]} 12. Qc2 {[%emt 0:03:00]} Re8 {[%emt 0:09:49]} (12... h6 $11 {keeps the balance.}) 13. Bxh7+ $16 {[%emt 0:10:23]} Kh8 {[%emt 0:02:22] [#]} 14. Rhd1 {[%emt 0:00:18]} (14. Kf1 $1 $16) 14... g6 $11 {[%emt 0:04:39] The position is equal.} 15. Bxg6 {[%emt 0:01:50]} Qf6 {[%emt 0:01:56]} 16. Bxf7 {[%emt 0:03:39]} Qxf7 {[%emt 0:09:21]} 17. Ng5 $36 {[%emt 0:05:38][%mdl 2048] White fights for an advantage.} Qh5+ {[%emt 0:02:29]} (17... Qxf4 18. Qh7#) 18. f3 {[%emt 0:03:19][%cal Og2g4] [#] aiming for g4!} d4 {[%emt 0:10:25]} 19. g4 $1 {[%emt 0:02:19]} Bxg4 {[%emt 0:02:03]} 20. fxg4 {[%emt 0:00:24]} Qxg4+ {[%emt 0:01:16]} (20... Rxe3+ $5 21. Bxe3 (21. Kf1 Qh4 $17) 21... Qxh2+ 22. Bf2 Re8+ 23. Qe4 (23. Ne4 $2 Qg2 $19) 23... Rxe4+ 24. Nxe4 Qg2 $19) 21. Kf1 {[%emt 0:02:40]} Qh5 {[%emt 0:01:25] Wards off Qh7+. Strongly threatening ...Rg8.} 22. Qe2 {[%emt 0:07:33]} (22. exd4 $2 Rf8 23. Ne6 (23. Qf2 $2 Rxf4 24. Qxf4 Rf8 $19) 23... Qh3+ 24. Kg1 Qxe6 $19) 22... Qh4 {[%emt 0:11:18]} (22... Qg6 $14) 23. Rac1 {[%emt 0:09:44]} (23. Kg1 $16 Re7 24. Kh1) 23... dxe3 {[%emt 0:05:15]} (23... Re7 $11 {remains equal.} 24. Rxc6 bxc6 25. Rxd4 Rf8) 24. Rc4 {[%emt 0:01:44]} ({White should play} 24. Bxe3 $16 {Hoping for Rc4.} Rxe3 25. Qxe3 Rf8+ 26. Kg2) 24... Rf8 $1 {[%emt 0:01:27][%csl LRf4,LRg5] The board is on fire.} (24... Qf2+ 25. Qxf2 exf2 26. Kxf2) 25. Kg2 $2 {[%emt 0:01:07] White is on the road to losing.} Rxf4 $19 {[%emt 0:01:14]} ({Don't blunder} 25... Qxg5+ $2 26. Bxg5 Rf2+ 27. Qxf2 exf2 28. Bf6+ (28. Kxf2 Rf8+ 29. Kg2 Rf7 $18) 28... Kh7 29. Rd7+ (29. Kxf2 Rf8 $18) 29... Kg6 30. Rf4 (30. Rxb7 Na5 $18) 30... f1=Q+ 31. Kxf1 $18) 26. Rxf4 {[%emt 0:00:05]} Qxg5+ {[%emt 0:00:35]} (26... Qxf4 $2 {loses.} 27. Qh5+ Kg7 28. Ne6+ Kf6 29. Nxf4 $18) 27. Kh3 $2 {[%emt 0:06:23]} (27. Rg4 Qxg4+ 28. Qxg4) 27... Qxf4 {[%emt 0:02:32]} 28. Qh5+ {[%emt 0:00:02]} Kg7 {[%emt 0:00:17]} 29. Rg1+ {[%emt 0:00:06]} Kf6 {[%emt 0:07:02]} 30. Rg6+ {[%emt 0:00:58]} Ke7 {[%emt 0:00:04]} 31. Qh7+ {[%emt 0:02:00]} Ke8 {[%emt 0:01:36] ( -> ...Qf3+)} ({Less strong is} 31... Qf7 32. Rg7 Rf8 33. Qe4+ Kd8 34. Rxf7 Rxf7 35. Qxe3 $19) 32. Qxb7 {[%emt 0:02:21]} Qf5+ {[%emt 0:02:00] Black mates.} 33. Rg4 {[%emt 0:00:02]} Rc8 {[%emt 0:00:31]} 34. a3 {[%emt 0:04:07]} Ne5 {[%emt 0:02:31][%csl Ge5][%cal Rf5g4]} 35. Qb5+ {[%emt 0:00:18]} Rc6 {[%emt 0:00:29][%csl Ge5][%cal Rf5g4]} 36. Qb8+ {[%emt 0:00:07]} Kd7 {[%emt 0:00:38][%csl Ge5][%cal Rf5g4]} 37. Qb7+ {[%emt 0:00:41]} Ke6 {[%emt 0:00:24][%csl Ge5][%cal Rf5g4]} 38. Qxb4 {[%emt 0:01:10]} Qxg4+ {[%emt 0:01:19]} 39. Qxg4+ {[%emt 0:00:58]} Nxg4 {[%emt 0:00:16] Weighted Error Value: White=0.83/Black=0.14 (very precise) .  Loses game:     	White=1     	---        Mistake:       	White=4     	Black=2      Inaccurate:     	---       	Black=1      OK:         	White=6     	Black=6      Best:        	White=2     	Black=3      Strong:       	White=1     	Black=1} 0-1